[Event "FIDE Women World Blitz 2021"]
[Site "Warsaw"]
[Date "2021.12.29"]
[Round "9.8"]
[White "Smietanska, Wiktoria"]
[Black "Malicka, Maria"]
[Result "1/2-1/2"]
[ECO "D42"]
[WhiteElo "1765"]
[BlackElo "2307"]
[Annotator "NA"]
[PlyCount "104"]
[EventDate "2021.12.29"]
[EventType "swiss"]
[EventCountry "POL"]
[Tiebreak "Cut1 Buchholz"]
[SourceTitle "playchess.com"]
[Source "ChessBase"]
[SourceQuality "1"]
[TimeControl "180+2"]

1. c4 {[%emt 0:00:01]} Nf6 {[%emt 0:00:01]} 2. Nc3 {[%emt 0:00:02]} c5 {
[%emt 0:00:02]} 3. Nf3 {[%emt 0:00:02]} d5 {[%emt 0:00:02]} 4. cxd5 {[%emt 0:
00:03]} Nxd5 {[%emt 0:00:02]} 5. d4 {[%emt 0:00:12]} Nxc3 {[%emt 0:00:06]} 6.
bxc3 {[%emt 0:00:02]} e6 {[%emt 0:00:07]} 7. e3 {[%emt 0:00:04]} Be7 {[%emt 0:
00:03]} 8. Bd3 {[%emt 0:00:03]} O-O {[%emt 0:00:01]} 9. O-O {[%emt 0:00:02]}
Nc6 {[%emt 0:00:03]} 10. Rb1 {[%emt 0:00:05]} b6 {[%emt 0:00:01]} 11. Bc2 {
[%emt 0:00:14]} Ba6 {[%emt 0:00:12]} 12. Re1 {[%emt 0:00:06]} Rc8 {[%emt 0:00:
03]} 13. Bd3 {[%emt 0:00:16]} Bxd3 {[%emt 0:00:04]} 14. Qxd3 {[%emt 0:00:02]}
Qc7 {[%emt 0:00:06]} 15. Rd1 {[%emt 0:00:14]} Rfd8 {[%emt 0:00:01]} 16. Qb5 {
[%emt 0:00:23]} e5 {[%emt 0:00:35]} 17. d5 {[%emt 0:00:15]} e4 {[%emt 0:00:03]}
18. Ne1 {[%emt 0:00:12]} Ne5 {[%emt 0:00:02]} 19. c4 {[%emt 0:00:07]} Bd6 {
[%emt 0:00:24]} 20. Bb2 {[%emt 0:00:22]} Ng4 {[%emt 0:00:11]} 21. h3 {[%emt 0:
00:10]} Ne5 {[%emt 0:00:29]} 22. Qb3 {[%emt 0:00:08]} Qe7 {[%emt 0:00:02]} 23.
Qc3 {[%emt 0:00:07]} Qg5 {[%emt 0:00:08]} 24. Kf1 {[%emt 0:00:14]} f6 {[%emt 0:
00:06]} 25. a4 {[%emt 0:00:06]} Ng6 {[%emt 0:00:11]} 26. a5 {[%emt 0:00:02]}
Be5 {[%emt 0:00:03]} 27. Qd2 {[%emt 0:00:04]} Rb8 {[%emt 0:00:11]} 28. Bxe5 {
[%emt 0:00:06]} Qxe5 {[%emt 0:00:02]} 29. Kg1 {[%emt 0:00:04]} Qd6 {[%emt 0:00:
06]} 30. axb6 {[%emt 0:00:02]} axb6 {[%emt 0:00:01]} 31. Rb5 {[%emt 0:00:03]}
Ne5 {[%emt 0:00:02]} 32. Qc2 {[%emt 0:00:02]} f5 {[%emt 0:00:03]} 33. Rdb1 {
[%emt 0:00:02]} Rb7 {[%emt 0:00:07]} 34. Qa4 {[%emt 0:00:05]} g5 {[%emt 0:00:
08]} 35. Qa6 {[%emt 0:00:04]} Rdb8 {[%emt 0:00:01]} 36. Qa4 {[%emt 0:00:01]} h5
{[%emt 0:00:03]} 37. Qc2 {[%emt 0:00:02]} Ra7 {[%emt 0:00:03]} 38. Qb3 {
[%emt 0:00:02]} Rab7 {[%emt 0:00:03]} 39. Qc2 {[%emt 0:00:01]} Ra7 {[%emt 0:00:
01]} 40. Qb3 {[%emt 0:00:01]} Ra6 {[%emt 0:00:00]} 41. Qc3 {[%emt 0:00:05]} Ra4
{[%emt 0:00:05]} 42. Qb3 {[%emt 0:00:03]} Ra6 {[%emt 0:00:04]} 43. Qc2 {
[%emt 0:00:02]} g4 {[%emt 0:00:07]} 44. h4 {[%emt 0:00:02]} Ng6 {[%emt 0:00:02]
} 45. g3 {[%emt 0:00:01]} Ne5 {[%emt 0:00:01]} 46. Kg2 {[%emt 0:00:04]} Nf3 {
[%emt 0:00:02]} 47. Kf1 {[%emt 0:00:02]} Nh2+ {[%emt 0:00:03]} 48. Kg2 {
[%emt 0:00:01]} Nf3 {[%emt 0:00:01]} 49. Kf1 {[%emt 0:00:01]} Nh2+ {[%emt 0:00:
02]} 50. Kg2 {[%emt 0:00:01]} Nf3 {[%emt 0:00:01]} 51. Kf1 {[%emt 0:00:00]}
Nh2+ {[%emt 0:00:01]} 52. Kg2 {[%emt 0:00:01]} Nf3 {[%emt 0:00:01]} 1/2-1/2

[Event "FIDE Women World Blitz 2021"]
[Site "Warsaw"]
[Date "2021.12.29"]
[Round "9.9"]
[White "Kulon, Klaudia"]
[Black "Muzychuk, Anna"]
[Result "0-1"]
[ECO "A86"]
[WhiteElo "2328"]
[BlackElo "2533"]
[Annotator "ChessBase"]
[PlyCount "90"]
[EventDate "2021.12.29"]
[EventType "swiss"]
[EventCountry "POL"]
[Tiebreak "Cut1 Buchholz"]
[SourceTitle "playchess.com"]
[Source "ChessBase"]
[SourceQuality "1"]
[TimeControl "180+2"]

1. d4 {[%emt 0:00:01]} f5 {[%emt 0:00:01]} 2. g3 {[%emt 0:00:02]} Nf6 {[%emt 0:
00:01]} 3. Bg2 {[%emt 0:00:01]} g6 {[%emt 0:00:00]} 4. c4 {[%emt 0:00:02]} Bg7
{[%emt 0:00:01]} 5. Nc3 {[%emt 0:00:01]} O-O {[%emt 0:00:01]} 6. e3 {[%emt 0:
00:04]} d6 {[%emt 0:00:02]} 7. Nge2 {[%emt 0:00:01]} e5 {[%emt 0:00:03]} 8.
dxe5 {[%emt 0:00:12]} dxe5 {[%emt 0:00:02]} 9. O-O {[%emt 0:00:01]} c6 {
[%emt 0:00:07]} 10. b3 {[%emt 0:00:05]} Qe7 {[%emt 0:00:07]} 11. a4 {[%emt 0:
00:07]} Rd8 {[%emt 0:00:13]} 12. Qc2 {[%emt 0:00:00]} Na6 {[%emt 0:00:01]} 13.
Ba3 {[%emt 0:00:06]} Nb4 {[%emt 0:00:02]} 14. Na2 {[%emt 0:00:29]} Nxc2 {
[%emt 0:00:08]} 15. Bxe7 {[%emt 0:00:01]} Rd2 {[%emt 0:00:01]} 16. Rad1 {
[%emt 0:00:12]} Rxe2 {[%emt 0:00:19]} 17. Nc3 {[%emt 0:00:22]} Nxe3 {[%emt 0:
00:14]} 18. Nxe2 {[%emt 0:00:01]} Nxd1 {[%emt 0:00:03]} 19. Rxd1 {[%emt 0:00:
00]} Kf7 {[%emt 0:00:18]} 20. Bd6 {[%emt 0:00:02]} Ne8 {[%emt 0:00:01]} 21. Ba3
{[%emt 0:00:04]} a5 {[%emt 0:00:06]} 22. Bc5 {[%emt 0:00:05]} Be6 {[%emt 0:00:
08]} 23. Nc3 {[%emt 0:00:09]} Nc7 {[%emt 0:00:44]} 24. Bb6 {[%emt 0:00:01]} Na6
{[%emt 0:00:14]} 25. Nb1 {[%emt 0:00:11]} Nb4 {[%emt 0:00:08]} 26. Rd8 {
[%emt 0:00:01]} Rxd8 {[%emt 0:00:31]} 27. Bxd8 {[%emt 0:00:01]} Nc2 {[%emt 0:
00:07]} 28. Bxa5 {[%emt 0:00:07]} Nd4 {[%emt 0:00:01]} 29. Nd2 {[%emt 0:00:05]}
Bh6 {[%emt 0:00:01]} 30. Nf3 {[%emt 0:00:11]} Nxb3 {[%emt 0:00:03]} 31. Nxe5+ {
[%emt 0:00:03]} Ke7 {[%emt 0:00:02]} 32. Bb4+ {[%emt 0:00:06]} Kf6 {[%emt 0:00:
03]} 33. Bc3 {[%emt 0:00:01]} Ke7 {[%emt 0:00:02]} 34. Bb4+ {[%emt 0:00:05]}
Kf6 {[%emt 0:00:01]} 35. Bc3 {[%emt 0:00:01]} Bd2 {[%emt 0:00:05]} 36. Bb2 {
[%emt 0:00:05]} Ke7 {[%emt 0:00:01]} 37. Kf1 {[%emt 0:00:07]} Bb4 {[%emt 0:00:
03]} 38. Ke2 {[%emt 0:00:02]} Kd6 {[%emt 0:00:03]} 39. f4 {[%emt 0:00:01]} Nc5
{[%emt 0:00:03]} 40. Nd3 {[%emt 0:00:05]} Bxc4 {[%emt 0:00:01]} 41. Be5+ {
[%emt 0:00:02]} Ke6 {[%emt 0:00:01]} 42. Ke3 {[%emt 0:00:05]} Bxd3 {[%emt 0:00:
02]} 43. Kd4 {[%emt 0:00:03]} Be4 {[%emt 0:00:03]} 44. Bf1 {[%emt 0:00:01]}
Nxa4 {[%emt 0:00:01]} 45. Bc4+ {[%emt 0:00:00]} Bd5 {[%emt 0:00:01]} 0-1

[Event "FIDE Women World Blitz 2021"]
[Site "Warsaw"]
[Date "2021.12.29"]
[Round "9.9"]
[White "Goraj, Barbara"]
[Black "Katkov, Michelle"]
[Result "1-0"]
[ECO "C68"]
[WhiteElo "1902"]
[BlackElo "1651"]
[Annotator "NA"]
[PlyCount "73"]
[EventDate "2021.12.29"]
[EventType "swiss"]
[EventCountry "POL"]
[Tiebreak "Cut1 Buchholz"]
[SourceTitle "playchess.com"]
[Source "ChessBase"]
[SourceQuality "1"]
[TimeControl "180+2"]

1. e4 {[%emt 0:00:01]} e5 {[%emt 0:00:01]} 2. Nf3 {[%emt 0:00:01]} Nc6 {
[%emt 0:00:01]} 3. Bb5 {[%emt 0:00:01]} a6 {[%emt 0:00:01]} 4. Bxc6 {[%emt 0:
00:01]} dxc6 {[%emt 0:00:02]} 5. O-O {[%emt 0:00:02]} Qd6 {[%emt 0:00:01]} 6.
d4 {[%emt 0:00:05]} exd4 {[%emt 0:00:02]} 7. Nxd4 {[%emt 0:00:05]} Bd7 {
[%emt 0:00:04]} 8. Be3 {[%emt 0:00:14]} O-O-O {[%emt 0:00:05]} 9. Nc3 {[%emt 0:
00:05]} Nh6 {[%emt 0:00:03]} 10. h3 {[%emt 0:00:05]} Qg6 {[%emt 0:00:12]} 11.
Qf3 {[%emt 0:00:14]} f5 {[%emt 0:00:18]} 12. e5 {[%emt 0:00:23]} c5 {[%emt 0:
00:11]} 13. Nde2 {[%emt 0:00:16]} Bc6 {[%emt 0:00:02]} 14. Qg3 {[%emt 0:00:04]}
Qxg3 {[%emt 0:00:30]} 15. Nxg3 {[%emt 0:00:04]} g6 {[%emt 0:00:21]} 16. f4 {
[%emt 0:00:02]} Bg7 {[%emt 0:00:12]} 17. Bxc5 {[%emt 0:00:08]} Rd2 {[%emt 0:00:
04]} 18. Rf2 {[%emt 0:00:01]} Rhd8 {[%emt 0:00:02]} 19. Be3 {[%emt 0:00:04]}
R2d7 {[%emt 0:00:14]} 20. Nge2 {[%emt 0:00:04]} b5 {[%emt 0:00:10]} 21. a3 {
[%emt 0:00:03]} Be4 {[%emt 0:00:23]} 22. Nxe4 {[%emt 0:00:16]} fxe4 {[%emt 0:
00:01]} 23. g4 {[%emt 0:00:01]} Rd1+ {[%emt 0:00:14]} 24. Rxd1 {[%emt 0:00:05]}
Rxd1+ {[%emt 0:00:01]} 25. Rf1 {[%emt 0:00:01]} Rd8 {[%emt 0:00:11]} 26. Nc3 {
[%emt 0:00:02]} Nf7 {[%emt 0:00:02]} 27. Nxe4 {[%emt 0:00:03]} Bf8 {[%emt 0:00:
09]} 28. Kf2 {[%emt 0:00:07]} Kb7 {[%emt 0:00:06]} 29. Ke2 {[%emt 0:00:01]} Be7
{[%emt 0:00:02]} 30. Rd1 {[%emt 0:00:05]} Rxd1 {[%emt 0:00:03]} 31. Kxd1 {
[%emt 0:00:01]} Nd8 {[%emt 0:00:05]} 32. f5 {[%emt 0:00:06]} gxf5 {[%emt 0:00:
02]} 33. gxf5 {[%emt 0:00:01]} Nf7 {[%emt 0:00:05]} 34. f6 {[%emt 0:00:02]} Bd8
{[%emt 0:00:06]} 35. e6 {[%emt 0:00:02]} Bxf6 {[%emt 0:00:01]} 36. Nxf6 {
[%emt 0:00:03]} Nd6 {[%emt 0:00:04]} 37. e7 {[%emt 0:00:02]} 1-0

[Event "FIDE Women World Blitz 2021"]
[Site "Warsaw"]
[Date "2021.12.29"]
[Round "9.10"]
[White "Bodnaruk, Anastasia"]
[Black "Mamedjarova, Turkan"]
[Result "1-0"]
[ECO "C88"]
[WhiteElo "2396"]
[BlackElo "2264"]
[Annotator "NA"]
[PlyCount "59"]
[EventDate "2021.12.29"]
[EventType "swiss"]
[EventCountry "POL"]
[Tiebreak "Cut1 Buchholz"]
[SourceTitle "playchess.com"]
[Source "ChessBase"]
[SourceQuality "1"]
[TimeControl "180+2"]

1. e4 {[%emt 0:00:00]} e5 {[%emt 0:00:01]} 2. Nf3 {[%emt 0:00:01]} Nc6 {
[%emt 0:00:01]} 3. Bb5 {[%emt 0:00:01]} a6 {[%emt 0:00:01]} 4. Ba4 {[%emt 0:00:
01]} Nf6 {[%emt 0:00:01]} 5. O-O {[%emt 0:00:01]} Be7 {[%emt 0:00:04]} 6. Re1 {
[%emt 0:00:01]} b5 {[%emt 0:00:04]} 7. Bb3 {[%emt 0:00:01]} O-O {[%emt 0:00:04]
} 8. a4 {[%emt 0:00:01]} Bb7 {[%emt 0:00:08]} 9. d3 {[%emt 0:00:09]} d6 {
[%emt 0:00:07]} 10. c3 {[%emt 0:00:03]} Nb8 {[%emt 0:00:06]} 11. Nbd2 {[%emt 0:
00:06]} Nbd7 {[%emt 0:00:03]} 12. d4 {[%emt 0:00:15]} c5 {[%emt 0:00:05]} 13.
d5 {[%emt 0:00:14]} c4 {[%emt 0:00:05]} 14. Bc2 {[%emt 0:00:01]} Nc5 {[%emt 0:
00:03]} 15. a5 {[%emt 0:00:20]} Re8 {[%emt 0:00:05]} 16. Nf1 {[%emt 0:00:01]}
g6 {[%emt 0:00:07]} 17. h3 {[%emt 0:00:15]} Nh5 {[%emt 0:00:12]} 18. g4 {
[%emt 0:00:08]} Nf6 {[%emt 0:00:15]} 19. Ng3 {[%emt 0:00:02]} Bc8 {[%emt 0:00:
12]} 20. Bh6 {[%emt 0:00:09]} Bf8 {[%emt 0:00:06]} 21. Qd2 {[%emt 0:00:03]} Bg7
{[%emt 0:00:17]} 22. Nh2 {[%emt 0:00:20]} Kh8 {[%emt 0:00:14]} 23. Rf1 {
[%emt 0:00:11]} Ng8 {[%emt 0:00:09]} 24. Bxg7+ {[%emt 0:00:13]} Kxg7 {[%emt 0:
00:01]} 25. f4 {[%emt 0:00:02]} exf4 {[%emt 0:00:16]} 26. Rxf4 {[%emt 0:00:08]}
Ra7 {[%emt 0:00:25]} 27. Raf1 {[%emt 0:00:02]} Qxa5 {[%emt 0:00:05]} 28. Nf3 {
[%emt 0:00:10]} Rae7 {[%emt 0:00:13]} 29. Nd4 {[%emt 0:00:05]} Qb6 {[%emt 0:00:
03]} 30. h4 {[%emt 0:00:15]} 1-0

[Event "FIDE Women World Blitz 2021"]
[Site "Warsaw"]
[Date "2021.12.29"]
[Round "9.10"]
[White "Zairbek kyzy, Begimai"]
[Black "Zabrzanska, Weronika"]
[Result "0-1"]
[ECO "C52"]
[WhiteElo "1701"]
[BlackElo "1596"]
[Annotator "NA"]
[PlyCount "158"]
[EventDate "2021.12.29"]
[EventType "swiss"]
[EventCountry "POL"]
[Tiebreak "Cut1 Buchholz"]
[SourceTitle "playchess.com"]
[Source "ChessBase"]
[SourceQuality "1"]
[TimeControl "180+2"]

1. e4 {[%emt 0:00:01]} e5 {[%emt 0:00:00]} 2. Nf3 {[%emt 0:00:02]} Nc6 {
[%emt 0:00:01]} 3. Bc4 {[%emt 0:00:01]} Bc5 {[%emt 0:00:01]} 4. b4 {[%emt 0:00:
01]} Bxb4 {[%emt 0:00:02]} 5. c3 Ba5 {[%emt 0:00:01]} 6. d4 {[%emt 0:00:01]} d6
{[%emt 0:00:02]} 7. O-O {[%emt 0:00:14]} Nf6 {[%emt 0:00:25]} 8. Qa4 {[%emt 0:
00:36]} exd4 {[%emt 0:00:33]} 9. cxd4 {[%emt 0:00:46]} Bd7 {[%emt 0:00:07]} 10.
d5 {[%emt 0:00:07]} Ne5 {[%emt 0:00:10]} 11. Qxa5 {[%emt 0:00:03]} Nxc4 {
[%emt 0:00:01]} 12. Qb4 {[%emt 0:00:28]} b5 {[%emt 0:00:10]} 13. Nc3 {[%emt 0:
00:08]} a5 {[%emt 0:00:03]} 14. Qb3 {[%emt 0:00:01]} Rb8 {[%emt 0:00:08]} 15.
a4 {[%emt 0:00:03]} Ne5 {[%emt 0:00:23]} 16. Nxe5 {[%emt 0:00:02]} dxe5 {
[%emt 0:00:01]} 17. axb5 {[%emt 0:00:02]} O-O {[%emt 0:00:09]} 18. Ba3 {
[%emt 0:00:01]} Re8 {[%emt 0:00:03]} 19. Bc5 {[%emt 0:00:11]} c6 {[%emt 0:00:
22]} 20. b6 {[%emt 0:00:01]} cxd5 {[%emt 0:00:06]} 21. exd5 {[%emt 0:00:00]} a4
{[%emt 0:00:11]} 22. Qb4 {[%emt 0:00:11]} Qc8 {[%emt 0:00:12]} 23. Rfc1 {
[%emt 0:00:05]} Qb7 {[%emt 0:00:01]} 24. Nxa4 {[%emt 0:00:12]} Nxd5 {[%emt 0:
00:10]} 25. Qb3 {[%emt 0:00:04]} Nf4 {[%emt 0:00:14]} 26. f3 {[%emt 0:00:04]}
Be6 {[%emt 0:00:03]} 27. Qe3 {[%emt 0:00:02]} f6 {[%emt 0:00:10]} 28. Bd6 {
[%emt 0:00:01]} Rbd8 {[%emt 0:00:03]} 29. Rc7 {[%emt 0:00:03]} Qa6 {[%emt 0:00:
01]} 30. Bxe5 {[%emt 0:00:10]} fxe5 {[%emt 0:00:03]} 31. Qxe5 {[%emt 0:00:01]}
Nh5 {[%emt 0:00:04]} 32. Qxh5 {[%emt 0:00:02]} Qd3 {[%emt 0:00:03]} 33. h4 {
[%emt 0:00:08]} Qd4+ {[%emt 0:00:01]} 34. Kh2 {[%emt 0:00:05]} Qxa1 {[%emt 0:
00:01]} 35. Nc5 {[%emt 0:00:01]} Bf7 {[%emt 0:00:03]} 36. Qf5 {[%emt 0:00:02]}
Qe5+ {[%emt 0:00:01]} 37. Qxe5 {[%emt 0:00:04]} Rxe5 {[%emt 0:00:00]} 38. b7 {
[%emt 0:00:01]} Ree8 {[%emt 0:00:00]} 39. Na6 {[%emt 0:00:10]} Bd5 {[%emt 0:00:
00]} 40. b8=Q {[%emt 0:00:02]} Rxb8 {[%emt 0:00:00]} 41. Nxb8 {[%emt 0:00:01]}
Rxb8 42. Rd7 {[%emt 0:00:01]} Be6 {[%emt 0:00:00]} 43. Rd6 {[%emt 0:00:00]} Kf7
{[%emt 0:00:00]} 44. Kg3 {[%emt 0:00:01]} Rb5 {[%emt 0:00:00]} 45. Ra6 {
[%emt 0:00:02]} Kf6 {[%emt 0:00:00]} 46. Ra7 {[%emt 0:00:04]} Rb4 {[%emt 0:00:
00]} 47. Ra5 {[%emt 0:00:02]} Rb2 {[%emt 0:00:03]} 48. Rc5 {[%emt 0:00:01]} Bb3
{[%emt 0:00:05]} 49. Rc6+ {[%emt 0:00:02]} Kf7 {[%emt 0:00:03]} 50. Rc7+ {
[%emt 0:00:00]} Kf6 {[%emt 0:00:04]} 51. Rc6+ {[%emt 0:00:01]} Be6 {[%emt 0:00:
01]} 52. Rc5 {[%emt 0:00:01]} h6 {[%emt 0:00:10]} 53. Rc6 {[%emt 0:00:01]} Ke7
{[%emt 0:00:02]} 54. Rc7+ {[%emt 0:00:02]} Bd7 {[%emt 0:00:01]} 55. Rc5 {
[%emt 0:00:03]} Rb6 {[%emt 0:00:04]} 56. Kf2 {[%emt 0:00:04]} Rg6 {[%emt 0:00:
04]} 57. g4 {[%emt 0:00:03]} Rf6 {[%emt 0:00:02]} 58. Kg3 {[%emt 0:00:00]} Bc6
{[%emt 0:00:02]} 59. Re5+ {[%emt 0:00:02]} Kd6 {[%emt 0:00:02]} 60. Re3 Kd5 {
[%emt 0:00:04]} 61. g5 {[%emt 0:00:02]} hxg5 {[%emt 0:00:02]} 62. hxg5 {
[%emt 0:00:01]} Rg6 63. Kg4 Kd4 {[%emt 0:00:03]} 64. Ra3 {[%emt 0:00:02]} Bd7+
{[%emt 0:00:01]} 65. Kh4 {[%emt 0:00:02]} Ke5 {[%emt 0:00:02]} 66. Rb3 {
[%emt 0:00:06]} Kf4 {[%emt 0:00:03]} 67. Rb4+ {[%emt 0:00:02]} Kxf3 {[%emt 0:
00:02]} 68. Rb3+ {[%emt 0:00:01]} Ke4 {[%emt 0:00:01]} 69. Rb7 {[%emt 0:00:03]}
Bc6 {[%emt 0:00:03]} 70. Re7+ {[%emt 0:00:00]} Kd5 {[%emt 0:00:02]} 71. Kh5 {
[%emt 0:00:01]} Re6 {[%emt 0:00:04]} 72. Rxg7 {[%emt 0:00:01]} Be8+ {[%emt 0:
00:01]} 73. Kg4 {[%emt 0:00:02]} Ke5 {[%emt 0:00:02]} 74. Ra7 {[%emt 0:00:02]}
Bc6 {[%emt 0:00:01]} 75. Ra5+ {[%emt 0:00:02]} Bd5 {[%emt 0:00:02]} 76. Ra1 {
[%emt 0:00:01]} Kd6 {[%emt 0:00:02]} 77. Ra6+ {[%emt 0:00:01]} Ke7 {[%emt 0:00:
01]} 78. Kf5 {[%emt 0:00:03]} Rxa6 {[%emt 0:00:02]} 79. g6 {[%emt 0:00:01]} Ba2
{[%emt 0:00:06]} 0-1

[Event "FIDE Women World Blitz 2021"]
[Site "Warsaw"]
[Date "2021.12.29"]
[Round "9.11"]
[White "Osmak, Yuliia"]
[Black "Dzagnidze, Nana"]
[Result "1/2-1/2"]
[ECO "A33"]
[WhiteElo "2198"]
[BlackElo "2524"]
[Annotator "ChessBase"]
[PlyCount "151"]
[EventDate "2021.12.29"]
[EventType "swiss"]
[EventCountry "POL"]
[Tiebreak "Cut1 Buchholz"]
[SourceTitle "playchess.com"]
[Source "ChessBase"]
[SourceQuality "1"]
[TimeControl "180+2"]

1. c4 {[%emt 0:00:01]} Nf6 {[%emt 0:00:03]} 2. Nc3 {[%emt 0:00:01]} c5 {
[%emt 0:00:06]} 3. Nf3 {[%emt 0:00:04]} e6 {[%emt 0:00:03]} 4. d4 {[%emt 0:00:
05]} cxd4 5. Nxd4 {[%emt 0:00:01]} Nc6 {[%emt 0:00:02]} 6. a3 {[%emt 0:00:02]}
d5 {[%emt 0:00:13]} 7. cxd5 {[%emt 0:00:14]} exd5 {[%emt 0:00:02]} 8. g3 {
[%emt 0:00:30]} Bc5 {[%emt 0:00:11]} 9. Nxc6 {[%emt 0:00:08]} bxc6 {[%emt 0:00:
02]} 10. Bg2 {[%emt 0:00:03]} O-O {[%emt 0:00:07]} 11. O-O {[%emt 0:00:01]} h6
{[%emt 0:00:06]} 12. b4 {[%emt 0:00:17]} Bd6 {[%emt 0:00:05]} 13. Bb2 {[%emt 0:
00:05]} Rb8 {[%emt 0:00:23]} 14. e4 {[%emt 0:00:17]} a5 {[%emt 0:00:27]} 15.
exd5 {[%emt 0:00:14]} axb4 {[%emt 0:00:01]} 16. axb4 {[%emt 0:00:03]} cxd5 {
[%emt 0:01:12]} 17. b5 {[%emt 0:00:23]} Be6 {[%emt 0:00:07]} 18. Nxd5 {[%emt 0:
00:21]} Bxd5 {[%emt 0:00:09]} 19. Bxf6 {[%emt 0:00:07]} Qxf6 {[%emt 0:00:07]}
20. Qxd5 {[%emt 0:00:01]} Rfc8 {[%emt 0:00:11]} 21. Rac1 {[%emt 0:00:18]} Rxc1
22. Rxc1 {[%emt 0:00:01]} Be5 {[%emt 0:00:04]} 23. Rb1 {[%emt 0:00:03]} Bd4 {
[%emt 0:00:01]} 24. Qf3 {[%emt 0:00:03]} Qxf3 {[%emt 0:00:03]} 25. Bxf3 {
[%emt 0:00:01]} Bb6 {[%emt 0:00:01]} 26. Bc6 {[%emt 0:00:03]} Rd8 {[%emt 0:00:
03]} 27. Rb2 {[%emt 0:00:01]} g6 {[%emt 0:00:02]} 28. h4 {[%emt 0:00:03]} Kg7 {
[%emt 0:00:00]} 29. Kg2 {[%emt 0:00:01]} g5 {[%emt 0:00:03]} 30. h5 {[%emt 0:
00:02]} Rd6 {[%emt 0:00:03]} 31. Ra2 {[%emt 0:00:02]} Rd8 {[%emt 0:00:03]} 32.
Ra6 {[%emt 0:00:03]} Rb8 {[%emt 0:00:00]} 33. Kf3 {[%emt 0:00:01]} Kf6 {
[%emt 0:00:02]} 34. Ra2 {[%emt 0:00:03]} Rd8 {[%emt 0:00:03]} 35. Be4 {[%emt 0:
00:03]} Rb8 {[%emt 0:00:02]} 36. Rc2 {[%emt 0:00:01]} Kg7 {[%emt 0:00:01]} 37.
Rc6 {[%emt 0:00:04]} Ba5 {[%emt 0:00:04]} 38. Bd3 {[%emt 0:00:01]} Bb6 {
[%emt 0:00:01]} 39. Rd6 {[%emt 0:00:03]} Rd8 {[%emt 0:00:02]} 40. Rxd8 {
[%emt 0:00:02]} Bxd8 {[%emt 0:00:01]} 41. Ke4 {[%emt 0:00:02]} Bb6 {[%emt 0:00:
02]} 42. f3 {[%emt 0:00:05]} Kf6 {[%emt 0:00:01]} 43. Kd5 {[%emt 0:00:01]} Ke7
{[%emt 0:00:03]} 44. Kc6 {[%emt 0:00:01]} Bf2 {[%emt 0:00:02]} 45. g4 {[%emt 0:
00:12]} Kd8 {[%emt 0:00:02]} 46. b6 {[%emt 0:00:03]} Be3 {[%emt 0:00:04]} 47.
Bf5 {[%emt 0:00:02]} Bf2 {[%emt 0:00:02]} 48. Kb7 {[%emt 0:00:01]} Be3 {
[%emt 0:00:01]} 49. Ka6 {[%emt 0:00:03]} Bd4 {[%emt 0:00:01]} 50. b7 {[%emt 0:
00:03]} Kc7 {[%emt 0:00:01]} 51. Bc8 {[%emt 0:00:01]} Be3 {[%emt 0:00:05]} 52.
Kb5 {[%emt 0:00:01]} Bf4 {[%emt 0:00:01]} 53. Kc4 {[%emt 0:00:01]} Kd8 {
[%emt 0:00:02]} 54. Kd5 {[%emt 0:00:01]} Ke7 {[%emt 0:00:00]} 55. Bf5 {[%emt 0:
00:04]} Bb8 {[%emt 0:00:01]} 56. Bc2 {[%emt 0:00:03]} Kf6 {[%emt 0:00:01]} 57.
Bb3 {[%emt 0:00:02]} Ke7 {[%emt 0:00:01]} 58. Ke4 {[%emt 0:00:03]} Kf6 {
[%emt 0:00:01]} 59. Bc4 {[%emt 0:00:02]} Bc7 {[%emt 0:00:00]} 60. Kd5 {[%emt 0:
00:01]} Bb8 {[%emt 0:00:01]} 61. Kc6 {[%emt 0:00:01]} Ke7 {[%emt 0:00:01]} 62.
Bb3 {[%emt 0:00:06]} Be5 {[%emt 0:00:01]} 63. Kd5 {[%emt 0:00:06]} Bb8 {
[%emt 0:00:01]} 64. Ke4 {[%emt 0:00:01]} Kf6 {[%emt 0:00:01]} 65. Bc4 {[%emt 0:
00:02]} Bc7 {[%emt 0:00:01]} 66. Kd5 {[%emt 0:00:02]} Ke7 {[%emt 0:00:02]} 67.
Kc5 {[%emt 0:00:02]} Bb8 {[%emt 0:00:01]} 68. Kc6 {[%emt 0:00:00]} Bf4 {
[%emt 0:00:03]} 69. Kb6 {[%emt 0:00:02]} Bb8 {[%emt 0:00:01]} 70. Ka6 {[%emt 0:
00:00]} Kf6 {[%emt 0:00:04]} 71. Ba2 {[%emt 0:00:01]} Ke7 {[%emt 0:00:01]} 72.
Kb5 {[%emt 0:00:02]} Kf6 {[%emt 0:00:02]} 73. Kc6 {[%emt 0:00:01]} Ke7 {
[%emt 0:00:00]} 74. Bb3 {[%emt 0:00:01]} Bf4 {[%emt 0:00:02]} 75. Bc2 {[%emt 0:
00:08]} Bb8 {[%emt 0:00:01]} 76. Bf5 {[%emt 0:00:05]} 1/2-1/2